{"text_format":"1","workbook":"xlsx","n_sheets":3,"sheets":["Tutorial","Balance","Hoja1"],"not_rendered":{"charts":0,"images":1,"macros":1,"external_links":0,"defined_names":0,"comments":0,"pivot_tables":0},"unopened":[],"bounds":{"document_bytes":16777216,"sheet_cells":100000,"rows_first":2000,"rows_last":500,"rows_between":2000,"halvings":0,"cell_chars":16384,"cell_head_chars":4096},"cells_cut":0,"cells_raw":0,"read":"whole","date_system":"1900"}

{"sheet":"Tutorial","index":0,"n_rows":9,"n_cols":2,"rows_kept":9,"cut":false,"hidden":false,"merged":[]}
[null,"Para el uso de eta hoja debe habilitar el calculo iterativo de Excel"]
["Calculo iterativo en Excel"]
[null,"Si usa Excel 2010 o posterior, haga clic en Archivo > Opciones > Fórmulas"]
[null," Si usa Excel para Mac, haga clic en el menú Excel y, a continuación, haga clic en Preferencias > Cálculo."]
[null,"Si usa Excel 2007, haga clic en el botón Microsoft Office  , en Opciones de Excel y luego en la categoría Fórmulas."]
[null,"En la sección Opciones de cálculo, active la casilla de verificación Habilitar cálculo iterativo"]
[null,"Si usa un equipo Mac, haga clic en Usar cálculo iterativo."]
[]
["Trabajo realizado con el apoyo del Programa UNAM-DGAPA-PAPIME PE110517"]

{"sheet":"Balance","index":1,"n_rows":44,"n_cols":16,"rows_kept":44,"cut":false,"hidden":false,"merged":[]}
[]
[null,"hi",null,"h0",null,"T0",null,"Ti",null,"Ts"]
[null,1.26,null,26.7,null,{"$f":"F4/10","v":15},null,{"$f":"H4/10","v":20},null,{"$f":"J4","v":-10.502482464932672}]
[null,null,null,null,null,150,null,200,null,{"$f":"((B3*((H3-J3)^(4/3)))/D3)-F3","v":-10.502482464932672}]
[]
[]
[]
[null,"ρ",null,"μ",null,"Cp",null,"Pr",null,"h",null,"L",null,"u∞",null,"k"]
[null,{"$f":"B10*0.1","v":1.2000000000000002},null,{"$f":"D10*10^-7","v":1.8E-5},null,{"$f":"F10*0.1","v":0.1},null,{"$f":"H10*0.1","v":0.70000000000000007},null,{"$f":"J10*0.1","v":7},null,{"$f":"L10*0.1","v":30},null,{"$f":"N10*0.1","v":15},null,{"$f":"P10*0.001","v":2.6000000000000002E-2}]
[null,12,null,180,null,1,null,7,null,70,null,300,null,150,null,26]
[]
[null,null,null,"Nux",null,{"$f":"integralPolinomica(0.000001,L9,L38)*(H9^J38)","v":-14.278579232618547},null,{"$f":"(P9/L9)*(D13/J38)*((B9*N9*L9/(D9))^J38)*(H9^J41)","v":26.743800338051333},null,null,null,{"$f":"B9*N9*L9/D9","v":30000000.000000004}]
[null,null,null,{"$f":"IF(AND(CELL(\"contenido\",D42)=1,CELL(\"contenido\",F42)=1),0.3,0)+IF(AND(CELL(\"contenido\",D42)=1,CELL(\"contenido\",F42)=2),0.33,0)+IF(AND(CELL(\"contenido\",D42)=2,CELL(\"contenido\",F42)=1),0.9,0)+IF(AND(CELL(\"contenido\",D42)=2,CELL(\"contenido\",F42)=2),0.029,0)","v":2.9000000000000001E-2}]
[]
[]
[]
[]
[]
[]
[]
[]
[]
[]
[]
[]
[]
[]
[]
[]
[]
[]
[]
[]
[]
[]
[null,null,null,null,null,null,null,{"$f":"CELL(\"contenido\",B39:B40)","v":"Laminar"}]
[null,null,null,null,null,"Natural"]
[null,null,null,null,null,"Forzada",null,null,null,{"$f":"IF(AND(CELL(\"contenido\",D42)=1,CELL(\"contenido\",F42)=1),J39,0)+IF(AND(CELL(\"contenido\",D42)=1,CELL(\"contenido\",F42)=2),L39,0)+IF(AND(CELL(\"contenido\",D42)=2,CELL(\"contenido\",F42)=1),J40,0)+IF(AND(CELL(\"contenido\",D42)=2,CELL(\"contenido\",F42)=2),L40,0)","v":0.8},null,{"$f":"J38-1","v":-0.19999999999999996}]
[null,"Laminar",null,0.3,null,0.33,null,null,null,1,null,0.5]
[null,"Turbulento",null,0.09,null,2.9000000000000001E-2,null,null,null,1,null,0.8]
[null,null,null,null,null,null,null,null,null,{"$f":"IF(AND(CELL(\"contenido\",D42)=1,CELL(\"contenido\",F42)=1),J42,0)+IF(AND(CELL(\"contenido\",D42)=1,CELL(\"contenido\",F42)=2),L42,0)+IF(AND(CELL(\"contenido\",D42)=2,CELL(\"contenido\",F42)=1),J43,0)+IF(AND(CELL(\"contenido\",D42)=2,CELL(\"contenido\",F42)=2),L43,0)","v":0.33333333333333331}]
[null,null,null,2,null,2,null,null,null,0.25,null,0.33333333333333331]
[null,null,null,null,null,null,null,null,null,0.33333333333333331,null,0.33333333333333331]
["Trabajo realizado con el apoyo del Programa UNAM-DGAPA-PAPIME PE110517"]

{"sheet":"Hoja1","index":2,"n_rows":2,"n_cols":8,"rows_kept":2,"cut":false,"hidden":false,"merged":[]}
[]
[null,"Calculo de hi",null,null,null,null,null,"Calculo de h0"]